fUSD/lending_fUSD_20260528
["ID","MTS","AMOUNT","RATE_DAILY","PERIOD"]
[423162170,1779898250000,-1000.0,0.00035616,10]
[423162172,1779898250000,-1000.0,0.00035616,10]
[423162174,1779898250000,-1000.0,0.00035616,10]
[423162188,1779898250000,-1000.0,0.00035616,10]
[423162192,1779898250000,-1000.0,0.00035616,10]
[423162176,1779898250000,-1000.0,0.00035616,10]
[423162180,1779898250000,-1000.0,0.00035616,10]
[423162140,1779898250000,-500.0,0.00035616,30]
[423162151,1779898250000,-500.0,0.00035616,30]
[423162141,1779898250000,-500.0,0.00035616,30]
[423162130,1779898250000,-500.0,0.00035616,30]
[423162147,1779898250000,-500.0,0.00035616,30]
[423162178,1779898250000,-1000.0,0.00035616,10]
[423162110,1779898250000,-500.0,0.00035616,30]
[423162112,1779898250000,-500.0,0.00035616,30]
[423162108,1779898250000,-500.0,0.00035616,30]
[423162116,1779898250000,-500.0,0.00035616,30]
[423162120,1779898250000,-500.0,0.00035616,30]
[423162118,1779898250000,-500.0,0.00035616,30]
[423162122,1779898250000,-500.0,0.00035616,30]
[423162132,1779898250000,-500.0,0.00035616,30]
[423162131,1779898250000,-500.0,0.00035616,30]
[423162142,1779898250000,-500.0,0.00035616,30]
[423162123,1779898250000,-500.0,0.00035616,30]
[423162127,1779898250000,-500.0,0.00035616,30]
[423162114,1779898250000,-500.0,0.00035616,30]
[423162129,1779898250000,-500.0,0.00035616,30]
[423162128,1779898250000,-500.0,0.00035616,30]
[423162136,1779898250000,-500.0,0.00035616,30]
[423162133,1779898250000,-500.0,0.00035616,30]
[423162135,1779898250000,-500.0,0.00035616,30]
[423162134,1779898250000,-500.0,0.00035616,30]
[423162138,1779898250000,-500.0,0.00035616,30]
[423162139,1779898250000,-500.0,0.00035616,30]
[423162125,1779898250000,-500.0,0.00035616,30]
[423162190,1779898250000,-1000.0,0.00035616,10]
[423162196,1779898250000,-1000.0,0.00035616,10]
[423162182,1779898250000,-1000.0,0.00035616,10]
[423162268,1779898250000,-300.0,0.00035778,2]
[423162270,1779898250000,-1068.40163352,0.00035778,2]
[423162269,1779898250000,-528.48327171,0.00035778,2]
[423162258,1779898250000,-493.38669858,0.00035778,2]
[423162271,1779898250000,-727.07827244,0.00035778,2]
[423162273,1779898250000,-302.21937029,0.00035778,2]
[423162272,1779898250000,-300.0,0.00035778,2]
[423162275,1779898250000,-300.0,0.00035778,2]
[423162274,1779898250000,-300.0,0.00035778,2]
[423162277,1779898250000,-300.0,0.00035778,2]
[423162263,1779898250000,-605.31118564,0.00035778,2]
[423162278,1779898250000,-300.0,0.00035778,2]
[423162279,1779898250000,-300.0,0.00035778,2]
[423162281,1779898250000,-300.0,0.00035778,2]
[423162282,1779898250000,-300.0,0.00035778,2]
[423162284,1779898250000,-344.45437934,0.00035778,2]
[423162285,1779898250000,-527.62572404,0.00035778,2]
[423162286,1779898250000,-300.0,0.00035778,2]
[423162283,1779898250000,-1263.96825586,0.00035778,2]
[423162287,1779898250000,-865.6208675,0.00035778,2]
[423162288,1779898250000,-300.0,0.00035778,2]
[423162184,1779898250000,-1000.0,0.00035616,10]
[423162276,1779898250000,-300.99795142,0.00035778,2]
[423162265,1779898250000,-300.0,0.00035778,2]
[423162280,1779898250000,-300.0,0.00035778,2]
[423162262,1779898250000,-300.0,0.00035778,2]
[423162194,1779898250000,-1000.0,0.00035616,10]
[423162267,1779898250000,-300.0,0.00035778,2]
[423162198,1779898250000,-510.0,0.00035616,10]
[423162211,1779898250000,-6542.61248154,0.00035708,2]
[423162213,1779898250000,-161.27,0.0003573,80]
[423162215,1779898250000,-300.0,0.00035778,2]
[423162219,1779898250000,-300.0,0.00035778,2]
[423162203,1779898250000,-500.0,0.00035651,120]
[423162217,1779898250000,-300.0,0.00035778,2]
[423162206,1779898250000,-293.646211,0.00035658,5]
[423162208,1779898250000,-6542.61248154,0.00035673,2]
[423162200,1779898250000,-281.31,0.00035616,2]
[423162221,1779898250000,-300.0,0.00035778,2]
[423162205,1779898250000,-6542.61248154,0.00035651,2]
[423162223,1779898250000,-300.0,0.00035778,2]
[423162225,1779898250000,-300.0,0.00035778,2]
[423162249,1779898250000,-300.0,0.00035778,2]
[423162251,1779898250000,-300.0,0.00035778,2]
[423162254,1779898250000,-300.0,0.00035778,2]
[423162256,1779898250000,-300.0,0.00035778,2]
[423162247,1779898250000,-300.0,0.00035778,2]
[423162245,1779898250000,-300.0,0.00035778,2]
[423162260,1779898250000,-300.0,0.00035778,2]
[423162331,1779898251000,-493.38669858,0.00035778,2]
[423162326,1779898251000,-300.0,0.00035778,2]
[423162321,1779898251000,-300.0,0.00035778,2]
[423162327,1779898251000,-300.0,0.00035778,2]
[423162324,1779898251000,-300.0,0.00035778,2]
[423162325,1779898251000,-546.24420691,0.00035778,2]
[423162322,1779898251000,-300.0,0.00035778,2]
[423162320,1779898251000,-431.45231676,0.00035778,2]
[423162323,1779898251000,-300.0,0.00035778,2]
[423162329,1779898251000,-300.0,0.00035778,2]
[423162330,1779898251000,-300.0,0.00035778,2]
[423162319,1779898251000,-300.0,0.00035778,2]
[423162333,1779898251000,-300.0,0.00035778,2]
[423162344,1779898251000,-300.0,0.00035778,2]
[423162332,1779898251000,-300.12808339,0.00035778,2]
[423162341,1779898251000,-300.0,0.00035778,2]
[423162335,1779898251000,-300.0,0.00035778,2]
[423162336,1779898251000,-300.0,0.00035778,2]
[423162334,1779898251000,-300.0,0.00035778,2]
[423162340,1779898251000,-300.0,0.00035778,2]
[423162337,1779898251000,-605.31118564,0.00035778,2]
[423162339,1779898251000,-300.0,0.00035778,2]
[423162343,1779898251000,-1068.40163352,0.00035778,2]
[423162349,1779898251000,-300.99795142,0.00035778,2]
[423162350,1779898251000,-300.0,0.00035778,2]
[423162318,1779898251000,-1096.2926835,0.00035778,2]
[423162338,1779898251000,-300.0,0.00035778,2]
[423162317,1779898251000,-300.0,0.00035778,2]
[423162292,1779898251000,-1148.83589152,0.00035778,2]
[423162314,1779898251000,-300.0,0.00035778,2]
[423162342,1779898251000,-528.48327171,0.00035778,2]
[423162290,1779898251000,-1800.09388364,0.00035778,2]
[423162289,1779898251000,-950.32029804,0.00035778,2]
[423162291,1779898251000,-300.0,0.00035778,2]
[423162294,1779898251000,-300.0,0.00035778,2]
[423162302,1779898251000,-464.48677942,0.00035778,2]
[423162293,1779898251000,-310.02493426,0.00035778,2]
[423162303,1779898251000,-300.0,0.00035778,2]
[423162296,1779898251000,-300.0,0.00035778,2]
[423162295,1779898251000,-300.0,0.00035778,2]
[423162297,1779898251000,-300.0,0.00035778,2]
[423162299,1779898251000,-594.79850986,0.00035778,2]
[423162328,1779898251000,-300.0,0.00035778,2]
[423162301,1779898251000,-300.0,0.00035778,2]
[423162298,1779898251000,-300.0,0.00035778,2]
[423162304,1779898251000,-578.28315025,0.00035778,2]
[423162307,1779898251000,-300.0,0.00035778,2]
[423162310,1779898251000,-300.0,0.00035778,2]
[423162311,1779898251000,-300.0,0.00035778,2]
[423162308,1779898251000,-300.0,0.00035778,2]
[423162313,1779898251000,-310.28230408,0.00035778,2]
[423162306,1779898251000,-452.52893397,0.00035778,2]
[423162309,1779898251000,-300.0,0.00035778,2]
[423162315,1779898251000,-300.0,0.00035778,2]
[423162305,1779898251000,-300.0,0.00035778,2]
[423162312,1779898251000,-484.76763572,0.00035778,2]
[423162300,1779898251000,-300.0,0.00035778,2]
[423162348,1779898251000,-300.0,0.00035778,2]
[423162316,1779898251000,-313.10763464,0.00035778,2]
[423162352,1779898251000,-300.0,0.00035778,2]
[423162378,1779898251000,-464.48677942,0.00035778,2]
[423162382,1779898251000,-452.52893397,0.00035778,2]
[423162384,1779898251000,-300.0,0.00035778,2]
[423162383,1779898251000,-300.0,0.00035778,2]
[423162388,1779898251000,-484.76763572,0.00035778,2]
[423162387,1779898251000,-300.0,0.00035778,2]
[423162386,1779898251000,-466.72874829,0.00035778,2]
[423162406,1779898251000,-150.0,0.00035951,2]
[423162385,1779898251000,-300.0,0.00035778,2]
[423162390,1779898251000,-6542.61248154,0.00035788,2]
[423162400,1779898251000,-207.0,0.00035863,30]
[423162389,1779898251000,-250.0,0.00035781,7]
[423162380,1779898251000,-578.28315025,0.00035778,2]
[423162393,1779898251000,-184.0,0.00035835,30]
[423162392,1779898251000,-880.0,0.00035835,30]
[423162394,1779898251000,-159.0,0.00035835,30]
[423162395,1779898251000,-184.7831,0.00035837,2]
[423162396,1779898251000,-199.0,0.00035861,30]
[423162397,1779898251000,-180.0,0.00035861,30]
[423162399,1779898251000,-202.0,0.00035861,30]
[423162398,1779898251000,-307.0,0.00035861,30]
[423162401,1779898251000,-236.0,0.00035863,30]
[423162402,1779898251000,-224.0,0.00035863,30]
[423162403,1779898251000,-216.0,0.00035863,30]
[423162405,1779898251000,-500.0,0.00035889,31]
[423162404,1779898251000,-415.0,0.00035863,30]
[423162391,1779898251000,-180.0,0.00035835,30]
[423162381,1779898251000,-300.0,0.00035778,2]
[423162345,1779898251000,-727.07827244,0.00035778,2]
[423162377,1779898251000,-300.0,0.00035778,2]
[423162346,1779898251000,-302.21937029,0.00035778,2]
[423162347,1779898251000,-300.0,0.00035778,2]
[423162351,1779898251000,-300.0,0.00035778,2]
[423162353,1779898251000,-300.00000001,0.00035778,2]
[423162355,1779898251000,-300.0,0.00035778,2]
[423162356,1779898251000,-300.0,0.00035778,2]
[423162354,1779898251000,-300.0,0.00035778,2]
[423162379,1779898251000,-300.0,0.00035778,2]
[423162359,1779898251000,-344.45437934,0.00035778,2]
[423162364,1779898251000,-865.6208675,0.00035778,2]
[423162357,1779898251000,-1263.96825586,0.00035778,2]
[423162360,1779898251000,-527.62572404,0.00035778,2]
[423162358,1779898251000,-300.0,0.00035778,2]
[423162361,1779898251000,-300.0,0.00035778,2]
[423162362,1779898251000,-300.0,0.00035778,2]
[423162363,1779898251000,-300.0,0.00035778,2]
[423162373,1779898251000,-300.0,0.00035778,2]
[423162370,1779898251000,-300.0,0.00035778,2]
[423162371,1779898251000,-300.0,0.00035778,2]
[423162369,1779898251000,-310.02493426,0.00035778,2]
[423162368,1779898251000,-1148.83589152,0.00035778,2]
[423162372,1779898251000,-300.0,0.00035778,2]
[423162365,1779898251000,-950.32029804,0.00035778,2]
[423162366,1779898251000,-1800.09388364,0.00035778,2]
[423162375,1779898251000,-594.79850986,0.00035778,2]
[423162374,1779898251000,-300.0,0.00035778,2]
[423162376,1779898251000,-300.0,0.00035778,2]
[423162367,1779898251000,-300.0,0.00035778,2]
[423162448,1779898252000,-300.0,0.00036999,10]
[423162445,1779898252000,-300.0,0.00036999,10]
[423162441,1779898252000,-468.36,0.0003692,2]
[423162440,1779898252000,-140677.6052,0.00036917,30]
[423162444,1779898252000,-300.0,0.00036999,10]
[423162436,1779898252000,-465.80655138,0.00036833,120]
[423162442,1779898252000,-500.0,0.00036966,37]
[423162437,1779898252000,-254.80416944,0.00036833,120]
[423162439,1779898252000,-150.0,0.0003688,2]
[423162438,1779898252000,-161.27,0.0003688,120]
[423162443,1779898252000,-300.0,0.00036999,10]
[423162458,1779898252000,-48688.0,0.00037,2]
[423162462,1779898252000,-1416.22735,0.00037,7]
[423162449,1779898252000,-300.0,0.00036999,10]
[423162454,1779898252000,-240.87599505,0.00036999,10]
[423162453,1779898252000,-300.0,0.00036999,10]
[423162450,1779898252000,-300.0,0.00036999,10]
[423162451,1779898252000,-300.0,0.00036999,10]
[423162452,1779898252000,-300.0,0.00036999,10]
[423162457,1779898252000,-192.51812993,0.00037,31]
[423162455,1779898252000,-666.0,0.00036999,30]
[423162456,1779898252000,-666.0,0.00036999,30]
[423162459,1779898252000,-1971772.0,0.00037,2]
[423162460,1779898252000,-610106.0,0.00037,2]
[423162466,1779898252000,-322.693275,0.00037,7]
[423162446,1779898252000,-300.0,0.00036999,10]
[423162447,1779898252000,-300.0,0.00036999,10]
[423162435,1779898252000,-237.06,0.00036807,30]
[423162416,1779898252000,-6542.61248154,0.00036131,2]
[423162431,1779898252000,-6542.61248154,0.00036665,2]
[423162461,1779898252000,-24858.40346047,0.00037,2]
[423162411,1779898252000,-945.96681288,0.00036,120]
[423162408,1779898252000,-1111.29009507,0.00036,120]
[423162407,1779898252000,-150.0,0.00035951,2]
[423162410,1779898252000,-174.11852651,0.00036,120]
[423162409,1779898252000,-172.85304604,0.00036,120]
[423162413,1779898252000,-248.00977717,0.00036,120]
[423162423,1779898252000,-161.27,0.000363,110]
[423162422,1779898252000,-150.0,0.00036247,2]
[423162420,1779898252000,-6608.05,0.000362,14]
[423162418,1779898252000,-6542.61248154,0.00036182,2]
[423162415,1779898252000,-6542.61248154,0.00036079,2]
[423162425,1779898252000,-708.80709478,0.00036382,120]
[423162419,1779898252000,-6542.61248154,0.0003619,2]
[423162414,1779898252000,-468.36,0.0003603,2]
[423162417,1779898252000,-466.2,0.00036153,30]
[423162421,1779898252000,-6542.61248154,0.00036216,2]
[423162424,1779898252000,-6542.61248154,0.00036357,2]
[423162427,1779898252000,-6542.61248154,0.00036428,2]
[423162429,1779898252000,-568.4,0.00036493,120]
[423162426,1779898252000,-157274.0,0.000364,30]
[423162428,1779898252000,-468.36,0.00036475,2]
[423162430,1779898252000,-6542.61248154,0.00036542,2]
[423162434,1779898252000,-247.49,0.00036797,30]
[423162433,1779898252000,-500.0,0.00036767,14]
[423162432,1779898252000,-150.0,0.00036712,60]
[423162412,1779898252000,-243.17539936,0.00036,120]
[423162464,1779898252000,-1416.22735,0.00037,7]
[423162465,1779898252000,-1416.22735,0.00037,7]
[423162469,1779898252000,-322.693275,0.00037,7]
[423162501,1779898252000,-300.0,0.00037099,10]
[423162500,1779898252000,-300.0,0.00037099,10]
[423162498,1779898252000,-666.0,0.00037098,30]
[423162499,1779898252000,-666.0,0.00037098,30]
[423162502,1779898252000,-300.0,0.00037099,10]
[423162503,1779898252000,-300.0,0.00037099,10]
[423162505,1779898252000,-300.0,0.00037099,10]
[423162504,1779898252000,-300.0,0.00037099,10]
[423162507,1779898252000,-300.0,0.00037099,10]
[423162518,1779898252000,-300.0,0.00037199,10]
[423162506,1779898252000,-300.0,0.00037099,10]
[423162517,1779898252000,-300.0,0.00037199,10]
[423162494,1779898252000,-300.0,0.00037098,10]
[423162509,1779898252000,-300.0,0.00037099,10]
[423162515,1779898252000,-300.0,0.00037199,10]
[423162516,1779898252000,-300.0,0.00037199,10]
[423162510,1779898252000,-666.0,0.00037099,30]
[423162511,1779898252000,-666.0,0.00037099,30]
[423162508,1779898252000,-300.0,0.00037099,10]
[423162513,1779898252000,-159.15,0.000371,30]
[423162514,1779898252000,-2000.0,0.000371,7]
[423162463,1779898252000,-1416.22735,0.00037,7]
[423162521,1779898252000,-300.0,0.00037199,10]
[423162522,1779898252000,-300.0,0.00037199,10]
[423162523,1779898252000,-300.0,0.00037199,10]
[423162520,1779898252000,-300.0,0.00037199,10]
[423162512,1779898252000,-1111.29009507,0.000371,120]
[423162497,1779898252000,-300.0,0.00037098,10]
[423162519,1779898252000,-300.0,0.00037199,10]
[423162495,1779898252000,-300.0,0.00037098,10]
[423162467,1779898252000,-151.0,0.00037,7]
[423162468,1779898252000,-322.693275,0.00037,7]
[423162470,1779898252000,-322.693275,0.00037,7]
[423162473,1779898252000,-532.976663,0.00037,7]
[423162471,1779898252000,-532.976663,0.00037,7]
[423162480,1779898252000,-462.613322,0.00037,7]
[423162475,1779898252000,-1254.88839,0.00037,7]
[423162474,1779898252000,-532.976663,0.00037,7]
[423162478,1779898252000,-1254.88839,0.00037,7]
[423162472,1779898252000,-532.976663,0.00037,7]
[423162476,1779898252000,-1254.88839,0.00037,7]
[423162477,1779898252000,-1254.88839,0.00037,7]
[423162479,1779898252000,-462.613322,0.00037,7]
[423162492,1779898252000,-300.0,0.00037098,10]
[423162493,1779898252000,-300.0,0.00037098,10]
[423162482,1779898252000,-462.613322,0.00037,7]
[423162489,1779898252000,-300.0,0.00037098,10]
[423162488,1779898252000,-151.0,0.00037,7]
[423162486,1779898252000,-151.0,0.00037,7]
[423162491,1779898252000,-300.0,0.00037098,10]
[423162487,1779898252000,-151.0,0.00037,7]
[423162496,1779898252000,-300.0,0.00037098,10]
[423162484,1779898252000,-151.0,0.00037,7]
[423162485,1779898252000,-151.0,0.00037,7]
[423162483,1779898252000,-151.0,0.00037,7]
[423162481,1779898252000,-462.613322,0.00037,7]
[423162490,1779898252000,-300.0,0.00037098,10]
[423162565,1779898253000,-150.124,0.00037833,2]
[423162557,1779898253000,-200.0,0.00037821,2]
[423162560,1779898253000,-150.0,0.00037833,2]
[423162556,1779898253000,-150.0,0.00037821,2]
[423162564,1779898253000,-150.0,0.00037833,2]
[423162554,1779898253000,-150.0,0.00037808,60]
[423162553,1779898253000,-700.0,0.00037807,60]
[423162550,1779898253000,-7693.8871005,0.00037783,2]
[423162551,1779898253000,-326543.2531414,0.00037783,2]
[423162558,1779898253000,-220.0,0.00037821,2]
[423162552,1779898253000,-266.44141423,0.00037805,4]
[423162575,1779898253000,-218.119828,0.00037899,7]
[423162562,1779898253000,-167.187,0.00037833,2]
[423162566,1779898253000,-150.0,0.00037833,2]
[423162561,1779898253000,-150.383,0.00037833,2]
[423162555,1779898253000,-150.0,0.00037821,2]
[423162563,1779898253000,-150.0,0.00037833,2]
[423162567,1779898253000,-500.0,0.00037873,120]
[423162571,1779898253000,-151.0,0.00037896,14]
[423162569,1779898253000,-1589.0,0.00037895,11]
[423162570,1779898253000,-163.0,0.00037895,11]
[423162548,1779898253000,-181.6629453,0.00037777,120]
[423162559,1779898253000,-150.0,0.00037833,2]
[423162546,1779898253000,-67112.12176668,0.00037739,2]
[423162534,1779898253000,-161.28,0.0003745,60]
[423162545,1779898253000,-150.0,0.00037736,120]
[423162578,1779898253000,-432.637886,0.00037899,7]
[423162530,1779898253000,-580.80658839,0.000374,30]
[423162526,1779898253000,-200.64187747,0.000372,120]
[423162527,1779898253000,-468.36857126,0.00037365,2]
[423162525,1779898253000,-253.45003982,0.00037199,30]
[423162529,1779898253000,-580.8065884,0.000374,30]
[423162524,1779898253000,-666.0,0.00037199,30]
[423162528,1779898253000,-430.45,0.000374,7]
[423162531,1779898253000,-580.80658839,0.000374,30]
[423162532,1779898253000,-163.33,0.00037443,60]
[423162547,1779898253000,-355.67461094,0.00037767,14]
[423162533,1779898253000,-150.0,0.00037449,2]
[423162535,1779898253000,-200.0,0.0003747,5]
[423162537,1779898253000,-6608.05,0.000375,14]
[423162536,1779898253000,-200.0,0.00037497,5]
[423162541,1779898253000,-200.0,0.00037577,6]
[423162539,1779898253000,-200.0,0.00037528,6]
[423162538,1779898253000,-150.0,0.00037504,120]
[423162542,1779898253000,-200.0,0.00037577,6]
[423162540,1779898253000,-500.0,0.00037533,60]
[423162544,1779898253000,-201.4,0.000377,15]
[423162549,1779898253000,-151.0,0.0003778,14]
[423162543,1779898253000,-157274.0,0.000376,30]
[423162574,1779898253000,-151.0,0.00037899,7]
[423162573,1779898253000,-151.0,0.00037899,7]
[423162576,1779898253000,-432.637886,0.00037899,7]
[423162609,1779898253000,-2317.0,0.00037904,11]
[423162603,1779898253000,-151.0,0.00037899,7]
[423162604,1779898253000,-151.0,0.00037899,7]
[423162600,1779898253000,-151.0,0.00037899,7]
[423162606,1779898253000,-1266.684672,0.00037899,7]
[423162610,1779898253000,-2382.24,0.00037909,2]
[423162607,1779898253000,-1266.684672,0.00037899,7]
[423162605,1779898253000,-1266.684672,0.00037899,7]
[423162612,1779898253000,-1039.13965637,0.00037981,120]
[423162622,1779898253000,-2317.0,0.00038051,11]
[423162608,1779898253000,-1266.684672,0.00037899,7]
[423162613,1779898253000,-150.0,0.00038,30]
[423162611,1779898253000,-500.0,0.00037935,15]
[423162616,1779898253000,-152.0,0.00038,120]
[423162621,1779898253000,-150.0,0.00038038,120]
[423162618,1779898253000,-161.28,0.0003802,86]
[423162619,1779898253000,-158.57,0.00038032,13]
[423162620,1779898253000,-158.58,0.00038032,13]
[423162617,1779898253000,-300.1611,0.00038,30]
[423162623,1779898253000,-2317.0,0.00038051,11]
[423162624,1779898253000,-168.1722,0.00038059,2]
[423162568,1779898253000,-500.0,0.00037873,120]
[423162615,1779898253000,-151.0,0.00038,120]
[423162601,1779898253000,-151.0,0.00037899,7]
[423162614,1779898253000,-13453.90453126,0.00038,7]
[423162599,1779898253000,-151.0,0.00037899,7]
[423162577,1779898253000,-432.637886,0.00037899,7]
[423162602,1779898253000,-251.318471,0.00037899,7]
[423162572,1779898253000,-231.655548,0.00037899,7]
[423162585,1779898253000,-151.0,0.00037899,7]
[423162625,1779898253000,-500.0,0.00038075,43]
[423162584,1779898253000,-151.0,0.00037899,7]
[423162579,1779898253000,-432.637886,0.00037899,7]
[423162583,1779898253000,-167.595544,0.00037899,7]
[423162590,1779898253000,-151.0,0.00037899,7]
[423162589,1779898253000,-151.880331,0.00037899,7]
[423162588,1779898253000,-151.0,0.00037899,7]
[423162587,1779898253000,-151.0,0.00037899,7]
[423162594,1779898253000,-1689.068888,0.00037899,7]
[423162586,1779898253000,-151.0,0.00037899,7]
[423162582,1779898253000,-151.0,0.00037899,7]
[423162581,1779898253000,-151.0,0.00037899,7]
[423162591,1779898253000,-151.0,0.00037899,7]
[423162592,1779898253000,-151.0,0.00037899,7]
[423162593,1779898253000,-1689.068888,0.00037899,7]
[423162598,1779898253000,-151.0,0.00037899,7]
[423162597,1779898253000,-151.0,0.00037899,7]
[423162596,1779898253000,-1689.068888,0.00037899,7]
[423162580,1779898253000,-151.0,0.00037899,7]
[423162595,1779898253000,-1689.068888,0.00037899,7]
[423162660,1779898254000,-151.0,0.00038356,30]
[423162666,1779898254000,-151.0,0.00038356,30]
[423162657,1779898254000,-151.0,0.00038356,30]
[423162662,1779898254000,-471.418946,0.00038356,7]
[423162668,1779898254000,-198.314198,0.00038356,30]
[423162665,1779898254000,-471.418946,0.00038356,7]
[423162663,1779898254000,-151.0,0.00038356,30]
[423162661,1779898254000,-151.0,0.00038356,30]
[423162659,1779898254000,-151.0,0.00038356,30]
[423162658,1779898254000,-471.418946,0.00038356,7]
[423162669,1779898254000,-198.314198,0.00038356,30]
[423162667,1779898254000,-198.314198,0.00038356,30]
[423162664,1779898254000,-198.314198,0.00038356,30]
[423162680,1779898254000,-300.824208,0.00038356,30]
[423162681,1779898254000,-455.373379,0.00038356,30]
[423162672,1779898254000,-602.995536,0.00038356,30]
[423162679,1779898254000,-455.373379,0.00038356,30]
[423162670,1779898254000,-151.0,0.00038356,30]
[423162677,1779898254000,-455.373379,0.00038356,30]
[423162678,1779898254000,-602.995536,0.00038356,30]
[423162673,1779898254000,-602.995536,0.00038356,30]
[423162675,1779898254000,-455.373379,0.00038356,30]
[423162676,1779898254000,-602.995536,0.00038356,30]
[423162682,1779898254000,-151.0,0.00038356,30]
[423162684,1779898254000,-151.0,0.00038356,30]
[423162655,1779898254000,-151.0,0.00038356,30]
[423162671,1779898254000,-151.0,0.00038356,30]
[423162653,1779898254000,-151.0,0.00038356,30]
[423162629,1779898254000,-1111.29009507,0.000382,120]
[423162654,1779898254000,-151.0,0.00038356,30]
[423162628,1779898254000,-2317.0,0.00038194,11]
[423162630,1779898254000,-2000.0,0.000382,7]
[423162626,1779898254000,-1587.0,0.000381,11]
[423162627,1779898254000,-466.2,0.00038125,30]
[423162685,1779898254000,-1144.19676,0.00038356,7]
[423162632,1779898254000,-2317.0,0.00038249,11]
[423162631,1779898254000,-2317.0,0.00038224,11]
[423162633,1779898254000,-350.0,0.00038282,2]
[423162635,1779898254000,-11610.85,0.000383,2]
[423162637,1779898254000,-3548.0,0.00038305,2]
[423162638,1779898254000,-2237.0,0.00038322,11]
[423162639,1779898254000,-1597.0,0.00038322,11]
[423162636,1779898254000,-11610.85,0.000383,2]
[423162642,1779898254000,-185.24638534,0.00038355,2]
[423162634,1779898254000,-150.0,0.000383,35]
[423162644,1779898254000,-231.23998198,0.00038356,2]
[423162643,1779898254000,-1055.27,0.00038356,30]
[423162640,1779898254000,-2317.0,0.0003833,11]
[423162641,1779898254000,-500.0,0.00038355,60]
[423162646,1779898254000,-151.0,0.00038356,30]
[423162645,1779898254000,-151.0,0.00038356,30]
[423162656,1779898254000,-471.418946,0.00038356,7]
[423162650,1779898254000,-151.0,0.00038356,30]
[423162647,1779898254000,-266.01708,0.00038356,30]
[423162651,1779898254000,-151.0,0.00038356,30]
[423162648,1779898254000,-151.0,0.00038356,30]
[423162652,1779898254000,-151.0,0.00038356,30]
[423162649,1779898254000,-151.0,0.00038356,30]
[423162686,1779898254000,-260.88469,0.00038356,30]
[423162674,1779898254000,-151.0,0.00038356,30]
[423162694,1779898254000,-151.0,0.00038356,30]
[423162719,1779898254000,-1310.490765,0.00038356,30]
[423162727,1779898254000,-608.349859,0.00038356,30]
[423162721,1779898254000,-1310.490765,0.00038356,30]
[423162726,1779898254000,-151.0,0.00038356,30]
[423162731,1779898254000,-511.751654,0.00038356,30]
[423162730,1779898254000,-708.380572,0.00038356,30]
[423162722,1779898254000,-153.695146,0.00038356,30]
[423162728,1779898254000,-151.0,0.00038356,30]
[423162723,1779898254000,-192.675696,0.00038356,30]
[423162725,1779898254000,-608.349859,0.00038356,30]
[423162720,1779898254000,-1310.490765,0.00038356,30]
[423162724,1779898254000,-608.349859,0.00038356,30]
[423162729,1779898254000,-608.349859,0.00038356,30]
[423162743,1779898254000,-151.0,0.00038356,30]
[423162732,1779898254000,-151.0,0.00038356,30]